Workbook

Sheet 9 DÍAS (1 UA)
C1: FOLIOS PENDIENTES A LA FECHA DE REPORTE
C5: FOLIOS PENDIENTES A LA FECHA DE REPORTE
B7: TIEMPO DE ATENCIÓN A SOLICITUDES DE INFORMACIÓN, FOLIOS DEL 05 DE MAYO AL 03 DE OCTUBRE DE 2016
B8: ATENDIDAS POR "UNA UNIDAD ADMINISTRATIVA" (10 DÍAS HÁBILES)
B9: Secretaría Técnica | D9: Secretaría Ejecutiva | F9: Contraloría | H9: Dirección Jurídica y Desarrollo Normativo | J9: Dirección de Capacitación y Cultura de la Transparencia | L9: Dirección de Evaluación y Estudios | N9: Dirección de Datos Personales | P9: Dirección de Vinculación con la Sociedad | R9: Dirección de Tecnologías de Información | T9: Dirección de Administración y Finanzas | V9: Dirección de Comunicación Social | X9: Unidad de Transparencia
B10: Folio | C10: Días | D10: Folio | E10: Días | F10: Folio | G10: Días | H10: Folio | I10: Días | J10: Folio | K10: Días | L10: Folio | M10: Días | N10: Folio | O10: Días | P10: Folio | Q10: Días | R10: Folio | S10: Días | T10: Folio | U10: Días | V10: Folio | W10: Días | X10: Folio | Y10: Días
A11: 1 | B11: 3100000075916 | C11: 9 | D11: 3100000109416 | E11: 9 | F11: 3100000107916 | G11: 5 | H11: 3100000079716 | I11: 8 | J11: 3100000095316 | K11: 3 | L11: 3100000075516 | M11: 6 | N11: 3100000077416 | O11: 7 | P11: 3100000075816 | Q11: 3 | R11: 3100000076216 | S11: 3 | T11: 3100000079216 | U11: 6 | V11: 3100000078716 | W11: 2 | X11: 3100000111516 | Y11: 7
A12: =SUM(A11+1) -> 2 | B12: 3100000076016 | C12: 9 | D12: 3100000110516 | E12: 9 | F12: 3100000125116 | G12: 3 | H12: 3100000081716 | I12: 4 | J12: 3100000109516 | K12: 7 | L12: 3100000079516 | M12: 5 | N12: 3100000078516 | O12: 7 | P12: 3100000151216 | R12: 3100000077516 | S12: 3 | T12: 3100000079616 | U12: 6 | V12: 3100000118116 | W12: 5 | X12: 3100000111616 | Y12: 7
A13: =SUM(A12+1) -> 3 | B13: 3100000084116 | C13: 5 | D13: 3100000115216 | E13: 8 | F13: 3100000125216 | G13: 3 | H13: 3100000090916 | I13: 9 | J13: 3100000110616 | K13: 7 | L13: 3100000089816 | M13: 2 | N13: 3100000078616 | O13: 7 | R13: 3100000094016 | S13: 3 | T13: 3100000081016 | U13: 5 | V13: 3100000127516 | W13: 0 | X13: 3100000111716 | Y13: 8
A14: 4 | B14: 3100000084216 | C14: 5 | D14: 3100000115316 | E14: 8 | F14: 3100000138416 | G14: 2 | H14: 3100000098516 | I14: 9 | J14: 3100000116916 | K14: 6 | L14: 3100000091216 | M14: 2 | N14: 3100000080216 | O14: 6 | R14: 3100000094116 | S14: 3 | T14: 3100000084616 | U14: 4 | V14: 3100000130516 | W14: 0 | X14: 3100000111816 | Y14: 8
A15: 5 | B15: 3100000084316 | C15: 5 | D15: 3100000115616 | E15: 8 | F15: 3100000144416 | G15: 5 | H15: 3100000103016 | I15: 9 | J15: 3100000127916 | K15: 3 | L15: 3100000105916 | M15: 2 | N15: 3100000080316 | O15: 6 | R15: 3100000094216 | S15: 3 | T15: 3100000091016 | U15: 4 | X15: 3100000111916 | Y15: 8
A16: 6 | B16: 3100000084416 | C16: 5 | D16: 3100000115816 | E16: 8 | H16: 3100000103116 | I16: 7 | L16: 3100000110016 | M16: 9 | N16: 3100000080416 | O16: 6 | R16: 3100000094316 | S16: 3 | T16: 3100000091716 | U16: 9 | X16: 3100000112016 | Y16: 8
A17: 7 | B17: 3100000084516 | C17: 5 | D17: 3100000116416 | E17: 8 | H17: 3100000103216 | I17: 7 | L17: 3100000112816 | M17: 9 | N17: 3100000080516 | O17: 6 | R17: 3100000095916 | S17: 3 | T17: 3100000091816 | U17: 9 | X17: 3100000112116 | Y17: 8
A18: 8 | B18: 3100000085816 | C18: 4 | D18: 3100000118216 | E18: 5 | H18: 3100000104116 | I18: 6 | L18: 3100000113316 | M18: 8 | N18: 3100000080616 | O18: 6 | R18: 3100000102416 | S18: 4 | T18: 3100000092516 | U18: 3 | X18: 3100000112216 | Y18: 8
A19: 9 | B19: 3100000085916 | C19: 4 | D19: 3100000118816 | E19: 7 | H19: 3100000104716 | I19: 5 | L19: 3100000113416 | M19: 8 | N19: 3100000080716 | O19: 6 | R19: 3100000110116 | S19: 8 | T19: 3100000097216 | U19: 7 | X19: 3100000112316 | Y19: 8
A20: 10 | B20: 3100000087916 | C20: 7 | D20: 3100000122316 | E20: 7 | H20: 3100000105616 | I20: 8 | L20: 3100000120716 | M20: 5 | N20: 3100000106016 | O20: 8 | R20: 3100000111116 | S20: 8 | T20: 3100000097316 | U20: 7 | X20: 3100000112416 | Y20: 8
A21: 11 | B21: 3100000102316 | C21: 6 | D21: 3100000128916 | E21: 1 | H21: 3100000106916 | I21: 7 | L21: 3100000126016 | M21: 3 | N21: 3100000116716 | O21: 3 | R21: 3100000113916 | S21: 7 | T21: 3100000098316 | U21: 9 | X21: 3100000112516 | Y21: 8
A22: 12 | B22: 3100000109316 | C22: 9 | D22: 3100000129416 | E22: 9 | H22: 3100000108016 | I22: 9 | L22: 3100000128516 | M22: 2 | N22: 3100000137816 | O22: 9 | R22: 3100000130216 | S22: 4 | T22: 3100000098416 | U22: 9 | X22: 3100000112616 | Y22: 8
A23: 13 | B23: 3100000109816 | C23: 9 | D23: 3100000129516 | E23: 9 | H23: 3100000108116 | I23: 9 | L23: 3100000130316 | M23: 3 | N23: 3100000137916 | O23: 9 | R23: 3100000133916 | S23: 3 | T23: 3100000103616 | U23: 5 | X23: 3100000112716 | Y23: 8
A24: 14 | B24: 3100000129116 | C24: 8 | D24: 3100000132616 | E24: 9 | H24: 3100000108216 | I24: 9 | L24: 3100000134216 | M24: 1 | N24: 3100000138016 | O24: 9 | R24: 3100000142116 | S24: 4 | T24: 3100000105316 | U24: 1 | X24: 3100000113716 | Y24: 6
A25: 15 | D25: 3100000144516 | E25: 9 | H25: 3100000108316 | I25: 9 | L25: 3100000135116 | M25: 2 | N25: 3100000138216 | O25: 9 | T25: 3100000106416 | U25: 8 | X25: 3100000114916 | Y25: 3
A26: 16 | D26: 3100000145116 | E26: 6 | H26: 3100000116216 | I26: 9 | L26: 3100000139916 | M26: 1 | T26: 3100000106516 | U26: 8 | X26: 3100000128616 | Y26: 0
A27: 17 | H27: 3100000116516 | I27: 9 | L27: 3100000142016 | M27: 2 | T27: 3100000106616 | U27: 8 | X27: 3100000129716 | Y27: 0
A28: 18 | H28: 3100000118316 | I28: 8 | T28: 3100000106716 | U28: 9 | X28: 3100000130716 | Y28: 0
A29: 19 | H29: 3100000119016 | I29: 9 | T29: 3100000106816 | U29: 9 | X29: 3100000130816 | Y29: 0
A30: 20 | H30: 3100000123516 | I30: 8 | T30: 3100000109616 | U30: 7 | X30: 3100000130916 | Y30: 0
A31: 21 | H31: 3100000129216 | I31: 6 | T31: 3100000114416 | U31: 9 | X31: 3100000131016 | Y31: 0
A32: 22 | H32: 3100000129716 | I32: 8 | T32: 3100000114716 | U32: 8 | X32: 3100000131316 | Y32: 0
A33: 23 | H33: 3100000130616 | I33: 7 | T33: 3100000115416 | U33: 9 | X33: 3100000131416 | Y33: 0
A34: 24 | H34: 3100000132816 | I34: 9 | T34: 3100000117116 | U34: 8 | X34: 3100000131716 | Y34: 5
A35: 25 | H35: 3100000137216 | I35: 7 | T35: 3100000119116 | U35: 8 | X35: 3100000132116 | Y35: 0
A36: 26 | H36: 3100000140216 | I36: 7 | T36: 3100000124916 | U36: 9
A37: 27 | H37: 3100000142616 | I37: 9 | T37: 3100000125916 | U37: 5
A38: 28 | H38: 3100000142916 | I38: 8 | T38: 3100000126516 | U38: 3
A39: 29 | H39: 3100000143016 | I39: 8 | T39: 3100000126916 | U39: 9
A40: 30 | H40: 3100000145316 | I40: 9 | T40: 3100000127616 | U40: 0
A41: 31 | H41: 3100000145816 | I41: 9 | T41: 3100000128016 | U41: 0
A42: 32 | H42: 3100000147316 | I42: 9 | T42: 3100000128116 | U42: 0
A43: 33 | T43: 3100000128416 | U43: 5
A44: 34 | T44: 3100000128816 | U44: 7
A45: 35 | T45: 3100000130416 | U45: 5
A46: 36 | T46: 3100000132016 | U46: 4
A47: 37 | T47: 3100000133316 | U47: 0
A48: 38 | T48: 3100000134116 | U48: 9
A49: 39 | T49: 3100000137416 | U49: 3
A50: 40 | T50: 3100000137516 | U50: 8
A51: 41 | T51: 3100000139716 | U51: 9
A52: 42 | T52: 3100000140016 | U52: 9
A53: 43 | T53: 3100000141216 | U53: 7
A54: 44 | T54: 3100000144116 | U54: 8
A55: 45 | T55: 3100000144316 | U55: 9
A56: 46 | T56: 3100000144716 | U56: 9
A57: 47 | T57: 3100000145916 | U57: 9
A58: 48 | T58: 3100000146216 | U58: 8
A59: 49 | T59: 3100000146516 | U59: 8
B61: PROMEDIO | C61: =AVERAGE(C11:C60) -> 6.428571429 | D61: PROMEDIO | E61: =AVERAGE(E11:E60) -> 7.5 | F61: PROMEDIO | G61: =AVERAGE(G11:G60) -> 3.6 | H61: PROMEDIO | I61: =AVERAGE(I11:I60) -> 7.9375 | J61: PROMEDIO | K61: =AVERAGE(K11:K60) -> 5.2 | L61: PROMEDIO | M61: =AVERAGE(M11:M60) -> 4.117647059 | N61: PROMEDIO | O61: =AVERAGE(O11:O60) -> 6.933333333 | P61: PROMEDIO | Q61: =AVERAGE(Q11:Q60) -> 3 | R61: PROMEDIO | S61: =AVERAGE(S11:S60) -> 4.214285714 | T61: PROMEDIO | U61: =AVERAGE(U11:U60) -> 6.489795918 | V61: PROMEDIO | W61: =AVERAGE(W11:W60) -> 1.75 | X61: PROMEDIO | Y61: =AVERAGE(Y11:Y60) -> 4.64
B62: No. Solicitudes | C62: =COUNT(C11:C60) -> 14 | E62: =COUNT(E11:E60) -> 16 | G62: =COUNT(G11:G60) -> 5 | I62: =COUNT(I11:I60) -> 32 | K62: =COUNT(K11:K60) -> 5 | M62: =COUNT(M11:M60) -> 17 | O62: =COUNT(O11:O60) -> 15 | Q62: =COUNT(Q11:Q60) -> 1 | S62: =COUNT(S11:S60) -> 14 | U62: =COUNT(U11:U60) -> 49 | W62: =COUNT(W11:W60) -> 4 | Y62: =COUNT(Y11:Y60) -> 25 | Z62: =SUM(C62,E62,G62,I62,K62,M62,O62,Q62,S62,U62,W62,Y62) -> 197

Sheet 18 DÍAS (1 UA)
C3: FOLIOS PENDIENTES A LA FECHA DE REPORTE
B5: TIEMPO DE ATENCIÓN A SOLICITUDES DE INFORMACIÓN, FOLIOS DEL 05 DE MAYO AL 03 DE OCTUBRE DE 2016
B6: ATENDIDAS POR "UNA UNIDAD ADMINISTRATIVA" (20 DÍAS HÁBILES)
B7: Secretaría Técnica | D7: Secretaría Ejecutiva | F7: Contraloría | H7: Dirección Jurídica y Desarrollo Normativo | J7: Dirección de Capacitación y Cultura de la Transparencia | L7: Dirección de Evaluación y Estudios | N7: Dirección de Datos Personales | P7: Dirección de Vinculación con la Sociedad | R7: Dirección de Tecnologías de Información | T7: Dirección de Administración y Finanzas | V7: Dirección de Comunicación Social | X7: Unidad de Transparencia
B8: Folio | C8: Días | D8: Folio | E8: Días | F8: Folio | G8: Días | H8: Folio | I8: Días | J8: Folio | K8: Días | L8: Folio | M8: Días | N8: Folio | O8: Días | P8: Folio | Q8: Días | R8: Folio | S8: Días | T8: Folio | U8: Días | V8: Folio | W8: Días | X8: Folio | Y8: Días
A9: 1 | H9: 3100000129016 | I9: 14 | N9: 3100000113816 | O9: 10 | T9: 3100000105416 | U9: 18
A10: 2 | H10: 3100000134916 | I10: 14 | T10: 3100000136216 | U10: 18
A11: 3 | T11: 3100000137716 | U11: 18
A12: 4 | T12: 3100000144616 | U12: 16
A13: 5 | T13: 3100000144816 | U13: 18
A14: 12
B15: PROMEDIO | C15: =AVERAGE(C9:C14) ->  | D15: PROMEDIO | E15: =AVERAGE(E9:E14) ->  | F15: PROMEDIO | G15: =AVERAGE(G9:G14) ->  | H15: PROMEDIO | I15: =AVERAGE(I9:I14) -> 14 | J15: PROMEDIO | K15: =AVERAGE(K9:K14) ->  | L15: PROMEDIO | M15: =AVERAGE(M9:M14) ->  | N15: PROMEDIO | O15: =AVERAGE(O9:O14) -> 10 | P15: PROMEDIO | Q15: =AVERAGE(Q9:Q14) ->  | R15: PROMEDIO | S15: =AVERAGE(S9:S14) ->  | T15: PROMEDIO | U15: =AVERAGE(U9:U14) -> 17.6 | V15: PROMEDIO | W15: =AVERAGE(W9:W14) ->  | X15: PROMEDIO | Y15: =AVERAGE(Y9:Y14) -> 

Sheet 9 DÍAS (2 o más UA)
C1: FOLIOS PENDIENTES A LA FECHA DE REPORTE
B3: TIEMPO DE ATENCIÓN A SOLICITUDES DE INFORMACIÓN, FOLIOS DEL 05 DE MAYO AL 03 DE OCTUBRE DE 2016
B4: ATENDIDAS POR "DOS O MÁS UNIDADES ADMINISTRATIVAS" (10 DÍAS HÁBILES)
B5: Folio | C5: Secretaría Técnica | D5: Secretaría Ejecutiva | E5: Contraloría | F5: Dirección Jurídica y Desarrollo Normativo | G5: Dirección de Capacitación y Cultura de la Transparencia | H5: Dirección de Evaluación y Estudios | I5: Dirección de Datos Personales | J5: Dirección de Vinculación con la Sociedad | K5: Dirección de Tecnologías de Información | L5: Dirección de Administración y Finanzas | M5: Dirección de Comunicación Social | N5: Unidad de Transparencia
C6: Días | D6: Días | E6: Días | F6: Días | G6: Días | H6: Días | I6: Días | J6: Días | K6: Días | L6: Días | M6: Días | N6: Días
A7: 1 | B7: 3100000077616 | F7: 7 | I7: 7
A8: 2 | B8: 3100000077716 | F8: 7 | I8: 7
A9: 3 | B9: 3100000077816 | F9: 7 | I9: 7
A10: 4 | B10: 3100000077916 | F10: 7 | I10: 7
A11: 5 | B11: 3100000078016 | F11: 7 | I11: 7
A12: 6 | B12: 3100000078216 | F12: 7 | I12: 7
A13: 7 | B13: 3100000078316 | F13: 7 | I13: 7
A14: 8 | B14: 3100000078416 | F14: 7 | I14: 7
A15: 9 | B15: 3100000079316 | F15: 6 | I15: 6
A16: 10 | B16: 3100000079416 | F16: 6 | I16: 6
A17: 11 | B17: 3100000081116 | F17: 7 | K17: 4 | M17: 2
A18: 12 | B18: 3100000081216 | F18: 7 | K18: 4 | M18: 2
A19: 13 | B19: 3100000083616 | G19: 5 | J19: 4
A20: 14 | B20: 3100000102016 | F20: 9 | L20: 9
A21: 15 | B21: 3100000102816 | F21: 8 | N21: 1
A22: 16 | B22: 3100000102916 | D22: 9 | E22: 3 | F22: 9 | G22: 2 | H22: 2 | I22: 7 | J22: 4 | K22: 3 | L22: 8 | M22: 2
A23: 17 | B23: 3100000103816 | C23: 1 | F23: 7
A24: 18 | B24: 3100000104016 | F24: 9 | I24: 7
A25: 19 | B25: 3100000104916 | L25: 9 | N25: 3
A26: 20 | B26: 3100000106116 | F26: 9 | H26: 4 | K26: 3 | N26: 2
A27: 21 | B27: 3100000107716 | F27: 9 | L27: 7
A28: 22 | B28: 3100000108916 | C28: 9 | I28: 9
A29: 23 | B29: 3100000109216 | C29: 9 | D29: 8 | E29: 6 | F29: 8 | G29: 7 | H29: 9 | I29: 8 | J29: 8 | K29: 8 | L29: 6 | M29: 8
A30: 24 | B30: 3100000109716 | C30: 9 | D30: 8 | E30: 6 | F30: 8 | G30: 7 | H30: 9 | I30: 8 | J30: 8 | K30: 8 | L30: 6 | M30: 8
A31: 25 | B31: 3100000109916 | H31: 9 | I31: 8 | L31: 7
A32: 26 | B32: 3100000110216 | C32: 9 | D32: 8 | E32: 6 | F32: 9 | G32: 7 | H32: 9 | I32: 8 | J32: 8 | K32: 8 | L32: 6 | M32: 8
A33: 27 | B33: 3100000110316 | C33: 9 | D33: 8 | E33: 6 | F33: 9 | G33: 7 | H33: 9 | I33: 8 | J33: 8 | K33: 8 | L33: 6 | M33: 8
A34: 28 | B34: 3100000110416 | C34: 9 | D34: 8 | E34: 6 | F34: 8 | G34: 7 | H34: 9 | I34: 8 | J34: 8 | K34: 8 | L34: 6 | M34: 8
A35: 29 | B35: 3100000110716 | C35: 9 | D35: 8 | E35: 6 | F35: 9 | G35: 7 | H35: 9 | I35: 8 | J35: 8 | K35: 8 | L35: 6 | M35: 8
A36: 30 | B36: 3100000110816 | F36: 8 | N36: 9
A37: 31 | B37: 3100000110916 | K37: 8 | L37: 6
A38: 32 | B38: 3100000111016 | C38: 9 | D38: 8 | E38: 6 | F38: 9 | G38: 7 | H38: 9 | I38: 8 | J38: 8 | K38: 8 | L38: 6 | M38: 8
A39: 33 | B39: 3100000111216 | C39: 9 | D39: 8 | E39: 6 | F39: 8 | G39: 7 | H39: 9 | I39: 8 | J39: 8 | K39: 8 | L39: 6 | M39: 8
A40: 34 | B40: 3100000111316 | C40: 9 | D40: 8 | E40: 6 | F40: 8 | G40: 7 | H40: 9 | I40: 8 | J40: 8 | K40: 8 | L40: 6 | M40: 8
A41: 35 | B41: 3100000111416 | C41: 9 | D41: 8 | E41: 6 | F41: 9 | G41: 7 | H41: 9 | I41: 8 | J41: 8 | K41: 8 | L41: 6 | M41: 8
A42: 36 | B42: 3100000114116 | F42: 9 | N42: 0
A43: 37 | B43: 3100000114316 | G43: 5 | H43: 7 | L43: 6
A44: 38 | B44: 3100000114516 | C44: 8 | D44: 6 | E44: 3 | F44: 6 | G44: 4 | H44: 6 | I44: 5 | J44: 5 | K44: 6 | L44: 8 | M44: 7
A45: 39 | B45: 3100000115516 | D45: 8 | J45: 7
A46: 40 | B46: 3100000115716 | D46: 8 | L46: 7
A47: 41 | B47: 3100000116616 | D47: 8 | G47: 7 | I47: 9 | J47: 6
A48: 42 | B48: 3100000116816 | E48: 2 | F48: 9 | G48: 9 | K48: 6 | L48: 7
A49: 43 | B49: 3100000117916 | G49: 6 | I49: 8
A50: 44 | B50: 3100000118616 | E50: 2 | F50: 9 | K50: 7
A51: 45 | B51: 3100000118916 | H51: 3 | I51: 8
A52: 46 | B52: 3100000120216 | F52: 9 | H52: 7 | K52: 3
A53: 47 | B53: 3100000121316 | F53: 9 | H53: 7 | I53: 9
A54: 48 | B54: 3100000122416 | L54: 9 | N54: 1
A55: 49 | B55: 3100000123416 | F55: 8 | K55: 4
A56: 50 | B56: 3100000124816 | G56: 7 | L56: 9
A57: 51 | B57: 3100000126216 | H57: 4 | N57: 0
A58: 52 | B58: 3100000126416 | L58: 9 | N58: 0
A59: 53 | B59: 3100000127716 | D59: 9 | J59: 7 | L59: 9
A60: 54 | B60: 3100000132716 | F60: 8 | K60: 2
A61: 55 | B61: 3100000132916 | F61: 7 | K61: 2
A62: 56 | B62: 3100000133716 | C62: 9 | F62: 8 | H62: 2
A63: 57 | B63: 3100000134016 | F63: 9 | K63: 9
A64: 58 | B64: 3100000135616 | C64: 4 | F64: 7
A65: 59 | B65: 3100000138116 | C65: 3 | D65: 7 | E65: 6 | F65: 9 | G65: 7 | H65: 2 | I65: 9 | J65: 6 | K65: 3 | L65: 7 | M65: 7
A66: 60 | B66: 3100000138316 | C66: 3 | D66: 7 | E66: 6 | F66: 7 | G66: 7 | H66: 2 | I66: 9 | J66: 7 | K66: 3 | L66: 2 | M66: 7
A67: 61 | B67: 3100000139016 | L67: 7 | N67: 0
A68: 62 | B68: 3100000139816 | C68: 7 | F68: 6 | G68: 6
A69: 63 | B69: 3100000140916 | F69: 9 | K69: 2
A70: 64 | B70: 3100000141516 | H70: 4 | N70: 0
A71: 65 | B71: 3100000142316 | H71: 4 | K71: 5
A72: 66 | B72: 3100000142416 | C72: 3 | F72: 2 | G72: 2
A73: 67 | B73: 3100000143216 | E73: 8 | F73: 0
A74: 68 | B74: 3100000144016 | D74: 5 | F74: 9
A75: 69 | B75: 3100000145016 | C75: 9 | F75: 9
A76: 70 | B76: 3100000145216 | F76: 9 | I76: 9
A77: 71 | B77: 3100000147016 | E77: 8 | L77: 8
B79: PROMEDIO | C79: =AVERAGE(C7:C78) -> 7.3 | D79: =AVERAGE(D7:D78) -> 7.736842105 | E79: =AVERAGE(E7:E78) -> 5.444444444 | F79: =AVERAGE(F7:F78) -> 7.705882353 | G79: =AVERAGE(G7:G78) -> 6.227272727 | H79: =AVERAGE(H7:H78) -> 6.375 | I79: =AVERAGE(I7:I78) -> 7.65625 | J79: =AVERAGE(J7:J78) -> 7 | K79: =AVERAGE(K7:K78) -> 5.703703704 | L79: =AVERAGE(L7:L78) -> 6.928571429 | M79: =AVERAGE(M7:M78) -> 6.6875 | N79: =AVERAGE(N7:N78) -> 1.6
B80: NÚMERO DE SOLICITUDES | C80: =COUNT(B7:B78) -> 62

Sheet 18 DÍAS (2 o más UA)
C1: FOLIOS PENDIENTES A LA FECHA DE REPORTE | G1: No ampliaron plazo, no se cuenta para el promedio
B3: TIEMPO DE ATENCIÓN A SOLICITUDES DE INFORMACIÓN, FOLIOS DEL 05 DE MAYO AL 03 DE OCTUBRE DE 2016
B4: ATENDIDAS POR "DOS O MÁS UNIDADES ADMINISTRATIVAS" (20 DÍAS HÁBILES)
B5: Folio | C5: Secretaría Técnica | D5: Secretaría Ejecutiva | E5: Contraloría | F5: Dirección Jurídica y Desarrollo Normativo | G5: Dirección de Capacitación y Cultura de la Transparencia | H5: Dirección de Evaluación y Estudios | I5: Dirección de Datos Personales | J5: Dirección de Vinculación con la Sociedad | K5: Dirección de Tecnologías de Información | L5: Dirección de Administración y Finanzas | M5: Dirección de Comunicación Social | N5: Unidad de Transparencia
C6: Días | D6: Días | E6: Días | F6: Días | G6: Días | H6: Días | I6: Días | J6: Días | K6: Días | L6: Días | M6: Días | N6: Días
A7: 1 | B7: 3100000103916 | C7: 18 | F7: 18
A8: 2 | B8: 3100000113616 | C8: 11 | I8: 5 | L8: 16
A9: 3 | B9: 3100000135516 | K9: 11 | L9: 11
A10: 4 | B10: 3100000144216 | F10: 18 | H10: 6
B12: PROMEDIO | C12: =AVERAGEIF(C7:C10,">9") -> 14.5 | D12: =AVERAGEIF(D7:D11,">9") ->  | E12: =AVERAGEIF(E7:E11,">9") ->  | F12: =AVERAGEIF(F7:F11,">9") -> 18 | G12: =AVERAGEIF(G7:G11,">9") ->  | H12: =AVERAGEIF(H7:H11,">9") ->  | I12: =AVERAGEIF(I7:I11,">9") ->  | J12: =AVERAGEIF(J7:J11,">9") ->  | K12: =AVERAGEIF(K7:K11,">9") -> 11 | L12: =AVERAGEIF(L7:L11,">9") -> 13.5 | M12: =AVERAGEIF(M7:M11,">9") ->  | N12: =AVERAGEIF(N7:N11,">9") -> 
B13: NÚMERO DE SOLICITUDES | C13: =COUNT(B7:B11) -> 3

Sheet Solicitudes Acceso restringido
C1: FOLIOS PENDIENTES A LA FECHA DE REPORTE
C2: UNIDAD ADMINISTRATIVA QUE CLASIFICÓ INFORMACIÓN
C3: UNIDAD ADMINISTRATIVA QUE NO CLASIFICÓ INFORMACIÓN.
B5: TIEMPO DE ATENCIÓN A SOLICITUDES DE INFORMACIÓN, FOLIOS DEL 05 DE MAYO AL 03 DE OCTUBRE DE 2016
B6: ACCESO RESTRINGIDO CONTENIDA EN LA RESPUESTA DE UNA O MÁS UNIDADES ADMINISTRATIVAS.
B7: Folio | C7: Secretaría Técnica | D7: Secretaría Ejecutiva | E7: Contraloría | F7: Dirección Jurídica y Desarrollo Normativo | G7: Dirección de Capacitación y Cultura de la Transparencia | H7: Dirección de Evaluación y Estudios | I7: Dirección de Datos Personales | J7: Dirección de Vinculación con la Sociedad | K7: Dirección de Tecnologías de Información | L7: Dirección de Administración y Finanzas | M7: Dirección de Comunicación Social | N7: Unidad de Transparencia | O7: OBSERVACIONES | P7: MODALIDAD | Q7: NO. ACUERDO / SUPUESTO LEGAL | R7: NO. SESIÓN
C8: Días | D8: Días | E8: Días | F8: Días | G8: Días | H8: Días | I8: Días | J8: Días | K8: Días | L8: Días | M8: Días | N8: Días
A9: 1 | B9: 3100000091116 | F9: 9 | O9: SE REUNIÓ CT | P9: Confidencial | Q9: 001/SE/CT-01-06/2016 | R9: 2a SE
A10: 2 | B10: 3100000091916 | I10: 8 | L10: 18 | O10: SE REUNIÓ CT | P10: Confidencial | Q10: 004/SO/CT-14-06/2016 | R10: 2a SO
A11: 3 | B11: 3100000097516 | K11: 7 | O11: SE REUNIÓ CT | P11: Confidencial | Q11: 003/SO/CT-02-06/2016 | R11: 1a SO
A12: 4 | B12: 310000097616 | L12: 8 | O12: SE REUNIÓ CT | P12: Confidencial | Q12: 002/SO/CT-02-06/2016: | R12: 1a SO
A13: 5 | B13: 310000097716 | L13: 8 | O13: SE REUNIÓ CT | P13: Confidencial | Q13: 002/SO/CT-02-06/2016: | R13: 1a SO
A14: 6 | B14: 310000097816 | L14: 8 | O14: SE REUNIÓ CT | P14: Confidencial | Q14: 002/SO/CT-02-06/2016: | R14: 1a SO
A15: 7 | B15: 3100000102516 | G15: 17 | L15: 18 | O15: SE REUNIÓ CT | P15: Confidencial | Q15: 006/SO/CT-28-06/2016 | R15: 3a SO
A16: 8 | B16: 3100000104616 | J16: 10 | O16: SE REUNIÓ CT | P16: Confidencial | Q16: 005/SE/CT-22-06/2016 | R16: 3a SE
A17: 9 | B17: 3100000108216 | F17: 9 | O17: SE REUNIÓ CT | P17: Reservada | Q17: 007/SO/CT-28-06/2016 | R17: ? 3a SO
A18: 10 | B18: 3100000114016 | G18: 9 | N18: 0 | O18: SE REUNIÓ CT | P18: Confidencial | Q18: 008/SE/CT-04-07-2016 | R18: 4a SE
A19: 11 | B19: 3100000118016 | G19: 8 | O19: SE REUNIÓ CT | P19: Confidencial | Q19: 009/SO/CT-07-07-2016 | R19: 4a SO
A20: 12 | B20: 3100000108616 | C20: 8 | E20: 9 | F20: 8 | L20: 9 | O20: SE REUNIÓ CT | P20: Confidencial | Q20: 010/SE/CT-15-07-2016 | R20: 5a SE
A21: 13 | B21: 3100000118416 | G21: 7 | L21: 18 | O21: SE REUNIÓ CT | P21: Confidencial | Q21: 011/SO/CT-04-08-2016 | R21: 5a SO
A22: 14 | B22: 3100000127116 | F22: 6 | O22: SE REUNIÓ CT | P22: Confidencial | Q22: 012/SE/CT-16-08-2016 | R22: 6a SE
A23: 15 | B23: 3100000131916 | F23: 9 | O23: SE REUNIÓ CT | P23: Reservada | Q23: 013/SO/CT-25-08/2016 | R23: 6a SO
A24: 16 | B24: 3100000129016 | F24: 18 | O24: SE REUNIÓ CT | P24: Confidencial | Q24: 014/SO/CT-19-09-2016 | R24: 7a SO
A25: 17 | B25: 3100000134916 | F25: 18 | O25: SE REUNIÓ CT | P25: Reservada | Q25: 015/SO/CT-19-09-2016 | R25: 7a SO
A26: 18 | B26: 3100000136216 | L26: 18 | O26: SE REUNIÓ CT | P26: Confidencial | Q26: 017/SO/CT-23-09-2016 | R26: 8a SO
A27: 19 | B27: 3100000143216 | E27: 8 | F27: 0 | O27: SE REUNIÓ CT | P27: Confidencial | Q27: 018/SO/CT-13-10-2016 | R27: 9a SO
B29: PROMEDIO | C29: =SumbyColor($B$2,C9:C28)/CountCcolor($B$2,C9:C28) ->  | D29: =SumbyColor($B$2,D9:D28)/CountCcolor($B$2,D9:D28) ->  | E29: =SumbyColor($B$2,E9:E28)/CountCcolor($B$2,E9:E28) -> 8.5 | F29: =SumbyColor($B$2,F9:F28)/CountCcolor($B$2,F9:F28) -> 11.5 | G29: =SumbyColor($B$2,G9:G28)/CountCcolor($B$2,G9:G28) -> 8.5 | H29: =SumbyColor($B$2,H9:H28)/CountCcolor($B$2,H9:H28) ->  | I29: =SumbyColor($B$2,I9:I28)/CountCcolor($B$2,I9:I28) ->  | J29: =SumbyColor($B$2,J9:J28)/CountCcolor($B$2,J9:J28) -> 10 | K29: =SumbyColor($B$2,K9:K28)/CountCcolor($B$2,K9:K28) -> 7 | L29: =SumbyColor($B$2,L9:L28)/CountCcolor($B$2,L9:L28) -> 13.71428571 | M29: =SumbyColor($B$2,M9:M28)/CountCcolor($B$2,M9:M28) ->  | N29: =SumbyColor($B$2,N9:N28)/CountCcolor($B$2,N9:N28) -> 
B30: 9 días | C30: =SumbyColor($B$3,C9:C28)/CountCcolor($B$3,C9:C28) -> 8 | D30: =SumbyColor($B$3,D9:D28)/CountCcolor($B$3,D9:D28) ->  | E30: =SumbyColor($B$3,E9:E28)/CountCcolor($B$3,E9:E28) ->  | F30: =SumbyColor($B$3,F9:F28)/CountCcolor($B$3,F9:F28) -> 4 | G30: =SumbyColor($B$3,G9:G28)/CountCcolor($B$3,G9:G28) -> 12 | H30: =SumbyColor($B$3,H9:H28)/CountCcolor($B$3,H9:H28) ->  | I30: =SumbyColor($B$3,I9:I28)/CountCcolor($B$3,I9:I28) -> 8 | J30: =SumbyColor($B$3,J9:J28)/CountCcolor($B$3,J9:J28) ->  | K30: =SumbyColor($B$3,K9:K28)/CountCcolor($B$3,K9:K28) ->  | L30: =SumbyColor($B$3,L9:L28)/CountCcolor($B$3,L9:L28) -> 9 | M30: =SumbyColor($B$3,M9:M28)/CountCcolor($B$3,M9:M28) ->  | N30: =SumbyColor($B$3,N9:N28)/CountCcolor($B$3,N9:N28) -> 0
Q32: CRITERIO PLENO | R32: 7a CRITERIO
Q33: SE REUNIÓ CT | R33: 7a SE

Sheet 3 DÍAS (UT)
C1: FOLIOS PENDIENTES A LA FECHA DE REPORTE
B3: TIEMPO DE ATENCIÓN A SOLICITUDES DE INFORMACIÓN, FOLIOS DEL 05 DE MAYO AL 03 DE OCTUBRE DE 2016
D5: Unidad de Transparencia
B6: Orientación | D6: Folio | E6: Días
A7: 1 | B7: Sría Finanzas, CG, OM, JG | D7: 3100000075616 | E7: 0
A8: =SUM(A7+1) -> 2 | B8: Sría Finanzas, CG, OM, JG | D8: 3100000075716 | E8: 0
A9: =SUM(A8+1) -> 3 | B9: INAI | D9: 3100000076316 | E9: 1
A10: 4 | B10: INAI | D10: 3100000076416 | E10: 1
A11: 5 | B11: INAI | D11: 3100000076516 | E11: 1
A12: 6 | B12: INAI | D12: 3100000076616 | E12: 1
A13: 7 | B13: INAI | D13: 3100000076716 | E13: 1
A14: 8 | B14: INAI | D14: 3100000076816 | E14: 1
A15: 9 | B15: INAI | D15: 3100000076916 | E15: 1
A16: 10 | B16: INVI | D16: 3100000077116 | E16: 2
A17: 11 | B17: PGJDF | D17: 3100000077216 | E17: 1
A18: 12 | B18: SHCP | D18: 3100000077316 | E18: 1
A19: 13 | B19: SEMOVI, DEL. BJ | D19: 3100000078116 | E19: 2
A20: 14 | B20: SEDECO, 16 DELEGS | D20: 3100000078816 | E20: 0
A21: 15 | B21: SEDECO, 16 DELEGS | D21: 3100000078916 | E21: 0
A22: 16 | B22: SEDECO, 16 DELEGS | D22: 3100000079016 | E22: 1
A23: 17 | B23: SEDECO, 16 DELEGS | D23: 3100000079116 | E23: 0
A24: 18 | B24: SCT, GACDMX | D24: 3100000079816 | E24: 1
A25: 19 | B25: SCT, GACDMX | D25: 3100000079916 | E25: 1
A26: 20 | B26: SCT, GACDMX | D26: 3100000080016 | E26: 1
A27: 21 | B27: SCT, GACDMX | D27: 3100000080116 | E27: 1
A28: 22 | B28: INAI | D28: 3100000080816 | E28: 1
A29: 23 | B29: DEL. TLALPAN, SEDUVI | D29: 3100000081316 | E29: 1
A30: 24 | B30: TRIBUNALES | D30: 3100000081416 | E30: 1
A31: 25 | B31: TRIBUNALES | D31: 3100000081516 | E31: 1
A32: 26 | B32: TRIBUNALES | D32: 3100000081616 | E32: 1
A33: 27 | B33: CNBV | D33: 3100000081816 | E33: 0
A34: 28 | B34: CNBV | D34: 3100000081916 | E34: 0
A35: 29 | B35: CNBV | D35: 3100000082016 | E35: 0
A36: 30 | B36: CNBV | D36: 3100000082116 | E36: 0
A37: 31 | B37: CNBV | D37: 3100000082216 | E37: 0
A38: 32 | B38: CNBV | D38: 3100000082316 | E38: 0
A39: 33 | B39: CNBV | D39: 3100000082416 | E39: 0
A40: 34 | B40: SEDUVI, PAOT, INVEA, DEL. AO | D40: 3100000083416 | E40: 0
A41: 35 | B41: PEMEX | D41: 3100000083716 | E41: 0
A42: 36 | B42: SRÍA SALUD-DF | D42: 3100000083816 | E42: 1
A43: 37 | B43: SRÍA SALUD-DF | D43: 3100000083916 | E43: 1
A44: 38 | B44: PEMEX EXPLORACIÓN | D44: 3100000084016 | E44: 0
A45: 39 | B45: INAI | D45: 3100000084716 | E45: 1
A46: 40 | B46: PGJDF | D46: 3100000086016 | E46: 0
A47: 41 | B47: PGJDF | D47: 3100000086116 | E47: 0
A48: 42 | B48: SHCP, ISSSTE | D48: 3100000086216 | E48: 0
A49: 43 | B49: INC | D49: 3100000086316 | E49: 1
A50: 44 | B50: INC | D50: 3100000086416 | E50: 1
A51: 45 | B51: SF | D51: 3100000086516 | E51: 1
A52: 46 | B52: SEDUVI | D52: 3100000086616 | E52: 0
A53: 47 | B53: SEDUVI | D53: 3100000086716 | E53: 0
A54: 48 | B54: SEDUVI | D54: 3100000086816 | E54: 0
A55: 49 | B55: SEDUVI | D55: 3100000086916 | E55: 0
A56: 50 | B56: ISSSTE | D56: 3100000087016 | E56: 0
A57: 51 | B57: SEDUVI | D57: 3100000087116 | E57: 0
A58: 52 | B58: ISSSTE | D58: 3100000087216 | E58: 0
A59: 53 | B59: INAI | D59: 3100000087816 | E59: 0
A60: 54 | B60: INAI | D60: 3100000088016 | E60: 1
A61: 55 | B61: INAI | D61: 3100000088116 | E61: 1
A62: 56 | B62: INAI | D62: 3100000088216 | E62: 1
A63: 57 | B63: INAI | D63: 3100000088316 | E63: 0
A64: 58 | B64: INAI | D64: 3100000088416 | E64: 0
A65: 59 | B65: DEL. GAM | D65: 3100000088516 | E65: 1
A66: 60 | B66: INAI | D66: 3100000088616 | E66: 0
A67: 61 | B67: INAI | D67: 3100000090616 | E67: 0
A68: 62 | B68: INAI | D68: 3100000090716 | E68: 0
A69: 63 | B69: INAI | D69: 3100000090816 | E69: 0
A70: 64 | B70: PGR, PGJDF | D70: 3100000091316 | E70: 1
A71: 65 | B71: PGR, PGJDF | D71: 3100000091416 | E71: 1
A72: 66 | B72: PGR, PGJDF | D72: 3100000091616 | E72: 0
A73: =SUM(A72+1) -> 67 | B73: CONSEJERÍA JURÍDICA | D73: 3100000092016 | E73: 1
A74: 68 | B74: CONSEJERÍA JURÍDICA | D74: 3100000092116 | E74: 1
A75: 69 | B75: SSPDF, TSJDF, CJDF, PGJDF, SECGOB | D75: 3100000092216 | E75: 0
A76: 70 | B76: INC | D76: 3100000092316 | E76: 0
A77: 71 | B77: INC | D77: 3100000092416 | E77: 0
A78: 72 | B78: CONSEJERÍA JURÍDICA | D78: 3100000092616 | E78: 1
A79: 73 | B79: CONSEJERÍA JURÍDICA | D79: 3100000092716 | E79: 1
A80: 74 | B80: SECTUR | D80: 3100000092916 | E80: 1
A81: 75 | B81: CONSEJERÍA JURÍDICA | D81: 3100000093016 | E81: 1
A82: 76 | B82: CONSEJERÍA JURÍDICA | D82: 3100000093116 | E82: 1
A83: 77 | B83: CONSEJERÍA JURÍDICA | D83: 3100000093216 | E83: 1
A84: 78 | B84: CONSEJERÍA JURÍDICA | D84: 3100000093316 | E84: 1
A85: 79 | B85: CONSEJERÍA JURÍDICA | D85: 3100000093416 | E85: 1
A86: 80 | B86: CONSEJERÍA JURÍDICA | D86: 3100000093516 | E86: 1
A87: 81 | B87: CONSEJERÍA JURÍDICA | D87: 3100000093616 | E87: 1
A88: 82 | B88: CONSEJERÍA JURÍDICA | D88: 3100000093716 | E88: 1
A89: 83 | B89: CONSEJERÍA JURÍDICA | D89: 3100000093816 | E89: 0
A90: 84 | B90: CONSEJERÍA JURÍDICA | D90: 3100000093916 | E90: 0
A91: 85 | B91: H. CÁMARA DE DIPUTADOS | D91: 3100000094416 | E91: 1
A92: 86 | B92: INAI | D92: 3100000094616 | E92: 2
A93: 87 | B93: UNAM, INBA | D93: 3100000094716 | E93: 2
A94: 88 | B94: PRESIDENCIA REP., JUDICATURA | D94: 3100000094816 | E94: 2
A95: 89 | B95: PRESIDENCIA REP., JUDICATURA | D95: 3100000094916 | E95: 2
A96: 90 | B96: INE | D96: 3100000095016 | E96: 0
A97: 91 | B97: INE | D97: 3100000095116 | E97: 0
A98: 92 | B98: INE | D98: 3100000095216 | E98: 0
A99: 93 | B99: INE | D99: 3100000095416 | E99: 0
A100: 94 | B100: SF, SEDUVI, DEL. IZTAP, REG. PUB. | D100: 3100000095516 | E100: 2
A101: 95 | B101: SF, SEDUVI, DEL. IZTAP, REG. PUB. | D101: 3100000095616 | E101: 2
A102: 96 | B102: SF, SEDUVI, DEL. IZTAP, REG. PUB. | D102: 3100000095716 | E102: 2
A103: 97 | B103: SF, SEDUVI, DEL. IZTAP, REG. PUB. | D103: 3100000095816 | E103: 2
A104: 98 | B104: IMSS | D104: 3100000096016 | E104: 1
A105: 99 | B105: IMSS | D105: 3100000096116 | E105: 1
A106: 100 | B106: INE | D106: 3100000096216 | E106: 1
A107: 101 | B107: CONSAR | D107: 3100000096316 | E107: 1
A108: 102 | B108: ASCDMX | D108: 3100000096416 | E108: 1
A109: 103 | B109: INAI | D109: 3100000096516 | E109: 1
A110: 104 | B110: INAI | D110: 3100000096616 | E110: 1
A111: 105 | B111: INAI | D111: 3100000096716 | E111: 1
A112: 106 | B112: INAI | D112: 3100000096816 | E112: 1
A113: 107 | B113: INAI | D113: 3100000096916 | E113: 1
A114: 108 | B114: INAI | D114: 3100000097016 | E114: 1
A115: 109 | B115: PROSOC, TSJDF, DIF-DF, DIF, | D115: 3100000097116 | E115: 1
A116: 110 | B116: SSPDF, TSJDF, CJDF, PGJDF, SECGOB | D116: 3100000097416 | E116: 0
A117: 111 | B117: IMSS | D117: 3100000097916 | E117: 0
A118: 112 | B118: TODOS LOS PARTIDOS POLÍTICOS CDMX | D118: 3100000098016 | E118: 0
A119: 113 | B119: SCJN | D119: 3100000098216 | E119: 0
A120: 114 | B120: OROCURADURÍA Q. ROO | D120: 3100000098616 | E120: 0
A121: 115 | B121: CONSAR | D121: 3100000098816 | E121: 0
A122: 116 | B122: PGJDF, CONTRALORÍA GRAL. | D122: 3100000098916 | E122: 0
A123: 117 | B123: IMSS | D123: 3100000099016 | E123: 0
A124: 118 | B124: PGJDF, CONTRALORÍA GRAL. | D124: 3100000099116 | E124: 0
A125: 119 | B125: PGJDF, CONTRALORÍA GRAL. | D125: 3100000099216 | E125: 0
A126: 120 | B126: PGJDF, CONTRALORÍA GRAL. | D126: 3100000099316 | E126: 0
A127: 121 | B127: PGJDF, CONTRALORÍA GRAL. | D127: 3100000099416 | E127: 0
A128: 122 | B128: PGJDF, CONTRALORÍA GRAL. | D128: 3100000099516 | E128: 0
A129: 123 | B129: PGJDF, CONTRALORÍA GRAL. | D129: 3100000099716 | E129: 0
A130: 124 | B130: PGJDF, CONTRALORÍA GRAL. | D130: 3100000099816 | E130: 0
A131: 125 | B131: SEMOVI, DEL. CUAJIMALPA | D131: 3100000099916 | E131: 0
A132: 126 | B132: PGJDF, CONTRALORÍA GRAL. | D132: 3100000100016 | E132: 1
A133: 127 | B133: PGJDF, CONTRALORÍA GRAL. | D133: 3100000100116 | E133: 1
A134: 128 | B134: PGJDF, CONTRALORÍA GRAL. | D134: 3100000100216 | E134: 0
A135: 129 | B135: PGJDF, CONTRALORÍA GRAL. | D135: 3100000100516 | E135: 0
A136: 130 | B136: PGJDF, CONTRALORÍA GRAL. | D136: 3100000100616 | E136: 0
A137: =SUM(A136+1) -> 131 | B137: PGJDF, CONTRALORÍA GRAL. | D137: 3100000101016 | E137: 0
A138: 132 | B138: PGJDF, CONTRALORÍA GRAL. | D138: 3100000101116 | E138: 0
A139: 133 | B139: PBI, CONTRALORÍA GRAL. | D139: 3100000101216 | E139: 0
A140: 134 | B140: PGJDF, CONTRALORÍA GRAL. | D140: 3100000101416 | E140: 0
A141: 135 | B141: PGJDF, CONTRALORÍA GRAL. | D141: 3100000101516 | E141: 0
A142: 136 | B142: PGJDF, CONTRALORÍA GRAL. | D142: 3100000101616 | E142: 0
A143: 137 | B143: PGJDF, CONTRALORÍA GRAL. | D143: 3100000101716 | E143: 0
A144: 138 | B144: PGJDF, CONTRALORÍA GRAL. | D144: 3100000101816 | E144: 0
A145: 139 | B145: PGJDF, CONTRALORÍA GRAL. | D145: 3100000101916 | E145: 0
A146: 140 | B146: PGJDF, CONTRALORÍA GRAL. | D146: 3100000102216 | E146: 0
A147: 141 | B147: SRE | D147: 3100000102716 | E147: 1
A148: 142 | B148: SSPDF | D148: 3100000103316 | E148: 2
A149: 143 | B149: PGJDF | D149: 3100000103416 | E149: 2
A150: 144 | B150: STC | D150: 3100000103716 | E150: 1
A151: 145 | B151: ISSSTE | D151: 3100000104216 | E151: 2
A152: 146 | B152: INM | D152: 3100000104316 | E152: 2
A153: 147 | B153: SEDECO, 16 DELEGS | D153: 3100000104416 | E153: 1
A154: 148 | B154: PGJDF, OFICIALÍA MAYOR | D154: 3100000104816 | E154: 1
A155: 149 | B155: SCT, STC, SRÍA OBRAS | D155: 3100000105216 | E155: 0
A156: 150 | B156: IMSS | D156: 3100000105516 | E156: 0
A157: 151 | B157: SCJN. CAMARA DIPS, SENADO | D157: 3100000105716 | E157: 1
A158: 152 | B158: INAI | D158: 3100000105816 | E158: 0
A159: 153 | B159: SEMARNAT, PROFEPA | D159: 3100000106216 | E159: 0
A160: 154 | B160: TSJDF, CJDF, CDHDF, SDIFDF, CJF | D160: 3100000107016 | E160: 0
A161: 155 | B161: ISSSTE | D161: 3100000107116 | E161: 0
A162: 156 | B162: ISSSTE | D162: 3100000107216 | E162: 0
A163: 157 | B163: TSJDF | D163: 3100000107316 | E163: 0
A164: 158 | B164: JGDF | D164: 3100000107416 | E164: 0
A165: 159 | B165: SSPDF | D165: 3100000107516 | E165: 0
A166: 160 | B166: ALDF | D166: 3100000107616 | E166: 3
A167: 161 | B167: ISSSTE | D167: 3100000107816 | E167: 0
A168: 162 | B168: SEDESO | D168: 3100000108416 | E168: 0
A169: 163 | B169: OM, SERVIMET | D169: 3100000108516 | E169: 0
A170: 164 | B170: SMA | D170: 3100000108816 | E170: 0
A171: 165 | B171: SSPDF | D171: 3100000109016 | E171: 0
A172: 166 | B172: SSPDF | D172: 3100000109116 | E172: 0
A173: 167 | B173: IPN | D173: 3100000112916 | E173: 1
A174: 168 | B174: IPN | D174: 3100000113016 | E174: 1
A175: 169 | B175: IPN | D175: 3100000113116 | E175: 1
A176: 170 | B176: IPN | D176: 3100000113216 | E176: 1
A177: 171 | B177: SEDESO, SDIF-DF | D177: 3100000114616 | E177: 0
A178: 172 | B178: IMSS | D178: 3100000114816 | E178: 1
A179: 173 | B179: CFE, INEGI | D179: 3100000115016 | E179: 0
A180: 174 | B180: CFE, INEGI | D180: 3100000115116 | E180: 0
A181: 175 | B181: IEDF | D181: 3100000115916 | E181: 0
A182: 176 | B182: DEL. IZTAPALAPA | D182: 3100000116016 | E182: 0
A183: 177 | B183: M1, SEMOVI, STC, MB, INDEPI, SDIF-DF, OM, ILIE, 16 DELEGS | D183: 3100000116116 | E183: 0
A184: 178 | B184: UACM, UNAM, UAM | D184: 3100000117216 | E184: 0
A185: 179 | B185: DEL. IZTAPALAPA | D185: 3100000117316 | E185: 0
A186: 180 | B186: IEDF | D186: 3100000117516 | E186: 0
A187: 181 | B187: DEL. IZTAPALAPA | D187: 3100000117616 | E187: 0
A188: 182 | B188: PEMEX | D188: 3100000117816 | E188: 0
A189: 183 | B189: PEMEX | D189: 3100000118516 | E189: 0
A190: 184 | B190: REGISTRO PUBLICO MINERO | D190: 3100000118716 | E190: 0
A191: 185 | B191: INBA | D191: 3100000119216 | E191: 0
A192: 186 | B192: IMSS | D192: 3100000119316 | E192: 0
A193: 187 | B193: SEMOVI | D193: 3100000119516 | E193: 0
A194: 188 | B194: SFP | D194: 3100000119616 | E194: 1
A195: 189 | B195: JLCA | D195: 3100000119716 | E195: 1
A196: 190 | B196: SRÍA SALUD-DF | D196: 3100000119816 | E196: 0
A197: 191 | B197: DEL. MAGDALENA CONTRERAS | D197: 3100000119916 | E197: 0
A198: 192 | B198: DEL. GAM | D198: 3100000120016 | E198: 1
A199: 193 | B199: 16 DELGS. SEDUVI | D199: 3100000120116 | E199: 1
A200: 194 | B200: SHCP | D200: 3100000120316 | E200: 0
A201: =SUM(A200+1) -> 195 | B201: SERV. SALUD PÚBLICA-DF | D201: 3100000120516 | E201: 0
A202: 196 | B202: SSP-DF | D202: 3100000120616 | E202: 0
... 129 more rows

Sheet 5 DÍAS (2 o más UA) (hidden)
B7: ATENCIÓN A SOLICITUDES DE INFORMACIÓN, INFODF A MARZO 2014
B8: ATENDIDAS POR "DOS O MÁS UNIDADES ADMINISTRATIVAS" (5 DÍAS HÁBILES)
B9: Folio | C9: Secretaría Técnica | D9: Secretaría Ejecutiva | E9: Contraloría | F9: Dirección Jurídica y Desarrollo Normativo | G9: Dirección de Capacitación y Cultura de la Transparencia | H9: Dirección de Evaluación y Estudios | I9: Dirección de Datos Personales | J9: Dirección de Vinculación con la Sociedad | K9: Dirección de Tecnologías de Información | L9: Dirección de Administración y Finanzas | M9: Dirección de Comunicación Social | N9: Oficina de Información Pública
C10: Días | D10: Días | E10: Días | F10: Días | G10: Días | H10: Días | I10: Días | J10: Días | K10: Días | L10: Días | M10: Días | N10: Días

Sheet RESUMEN POR UA (hidden)
A1: TIEMPO DE ATENCIÓN A SOLICITUDES DE INFORMACIÓN POR UNIDAD ADMINISTRATIVA, FOLIOS AL 15 DE JUNIO DE 2015
A2: Unidad Administrativa | B2: SIP de 10 días atendidas por una UA | D2: SIP de 20 días atendidas por una UA | F2: SIP de 10 días atendidas por dos o más UA | H2: SIP de 20 días atendidas por dos o más UA | J2: Solicitudes Acceso Restringido | L2: SIP de 5 días atendidas por 1 UA | N2: SIP de 5 días atendidas por 2 o más UA
B3: Folios | C3: Promedio días atención | D3: Folios | E3: Promedio días atención | F3: Folios | G3: Promedio días atención | H3: Folios | I3: Promedio días atención | J3: Folios | K3: Promedio días atención | L3: Folios | M3: Promedio días atención | N3: Folios | O3: Promedio días atención
A4: Secretaría Técnica | B4: =COUNT('9 DÍAS (1 UA)'!C11:C59) -> 14 | C4: ='9 DÍAS (1 UA)'!C61 -> 6.428571429 | D4: =COUNT('18 DÍAS (1 UA)'!C9:C14) -> 0 | F4: =COUNT('9 DÍAS (2 o más UA)'!C7:C77) -> 20 | G4: ='9 DÍAS (2 o más UA)'!#REF! ->  | H4: =COUNTIF('18 DÍAS (2 o más UA)'!C7:C8, ">10") -> 2 | I4: ='18 DÍAS (2 o más UA)'!C12 -> 14.5 | J4: =CountCcolor('Solicitudes Acceso restringido'!$B$2,'Solicitudes Acceso restringido'!C9:C28) -> 0 | L4: =COUNT(#REF!) -> 0 | M4: =#REF! ->  | N4: =COUNT(#REF!) -> 0 | O4: =#REF! -> 
A5: Secretaría Ejecutiva | B5: =COUNT('9 DÍAS (1 UA)'!E11:E59) -> 16 | C5: ='9 DÍAS (1 UA)'!E61 -> 7.5 | D5: =COUNT('18 DÍAS (1 UA)'!E9:E14) -> 0 | F5: =COUNT('9 DÍAS (2 o más UA)'!D7:D77) -> 19 | G5: ='9 DÍAS (2 o más UA)'!#REF! ->  | H5: =COUNTIF('18 DÍAS (2 o más UA)'!D7:D8, ">10") -> 0 | I5: ='18 DÍAS (2 o más UA)'!D12 ->  | J5: =CountCcolor('Solicitudes Acceso restringido'!$B$2,'Solicitudes Acceso restringido'!D9:D28) -> 0 | L5: =COUNT(#REF!) -> 0 | M5: =#REF! ->  | N5: =COUNT(#REF!) -> 0 | O5: =#REF! -> 
A6: Contraloría | B6: =COUNT('9 DÍAS (1 UA)'!G11:G59) -> 5 | C6: ='9 DÍAS (1 UA)'!G61 -> 3.6 | D6: =COUNT('18 DÍAS (1 UA)'!G9:G14) -> 0 | F6: =COUNT('9 DÍAS (2 o más UA)'!E7:E77) -> 18 | G6: ='9 DÍAS (2 o más UA)'!#REF! ->  | H6: =COUNTIF('18 DÍAS (2 o más UA)'!E7:E8, ">10") -> 0 | J6: =CountCcolor('Solicitudes Acceso restringido'!$B$2,'Solicitudes Acceso restringido'!E9:E28) -> 2 | K6: ='Solicitudes Acceso restringido'!E29 -> 8.5 | L6: =COUNT(#REF!) -> 0 | M6: =#REF! ->  | N6: =COUNT(#REF!) -> 0 | O6: =#REF! -> 
A7: DJDN | B7: =COUNT('9 DÍAS (1 UA)'!I11:I59) -> 32 | C7: ='9 DÍAS (1 UA)'!I61 -> 7.9375 | D7: =COUNT('18 DÍAS (1 UA)'!I9:I14) -> 2 | E7: ='18 DÍAS (1 UA)'!I15 -> 14 | F7: =COUNT('9 DÍAS (2 o más UA)'!F7:F77) -> 51 | G7: ='9 DÍAS (2 o más UA)'!#REF! ->  | H7: =COUNTIF('18 DÍAS (2 o más UA)'!F7:F8, ">10") -> 1 | I7: ='18 DÍAS (2 o más UA)'!F12 -> 18 | J7: =CountCcolor('Solicitudes Acceso restringido'!$B$2,'Solicitudes Acceso restringido'!F9:F28) -> 6 | K7: ='Solicitudes Acceso restringido'!F29 -> 11.5 | L7: =COUNT(#REF!) -> 0 | M7: =#REF! ->  | N7: =COUNT(#REF!) -> 0 | O7: =#REF! -> 
A8: DCCT | B8: =COUNT('9 DÍAS (1 UA)'!K11:K59) -> 5 | C8: ='9 DÍAS (1 UA)'!K61 -> 5.2 | D8: =COUNT('18 DÍAS (1 UA)'!K9:K14) -> 0 | F8: =COUNT('9 DÍAS (2 o más UA)'!G7:G77) -> 22 | G8: ='9 DÍAS (2 o más UA)'!#REF! ->  | H8: =COUNTIF('18 DÍAS (2 o más UA)'!G7:G8, ">10") -> 0 | J8: =CountCcolor('Solicitudes Acceso restringido'!$B$2,'Solicitudes Acceso restringido'!G9:G28) -> 2 | K8: ='Solicitudes Acceso restringido'!G29 -> 8.5 | L8: =COUNT(#REF!) -> 0 | M8: =#REF! ->  | N8: =COUNT(#REF!) -> 0 | O8: =#REF! -> 
A9: DEyE | B9: =COUNT('9 DÍAS (1 UA)'!M11:M59) -> 17 | C9: ='9 DÍAS (1 UA)'!M61 -> 4.117647059 | D9: =COUNT('18 DÍAS (1 UA)'!M9:M14) -> 0 | E9: ='18 DÍAS (1 UA)'!M15 ->  | F9: =COUNT('9 DÍAS (2 o más UA)'!H7:H77) -> 24 | G9: ='9 DÍAS (2 o más UA)'!#REF! ->  | H9: =COUNTIF('18 DÍAS (2 o más UA)'!H7:H8, ">10") -> 0 | I9: ='18 DÍAS (2 o más UA)'!H12 ->  | J9: =CountCcolor('Solicitudes Acceso restringido'!$B$2,'Solicitudes Acceso restringido'!H9:H28) -> 0 | L9: =COUNT(#REF!) -> 0 | M9: =#REF! ->  | N9: =COUNT(#REF!) -> 0 | O9: =#REF! -> 
A10: DDP | B10: =COUNT('9 DÍAS (1 UA)'!O11:O59) -> 15 | C10: ='9 DÍAS (1 UA)'!O61 -> 6.933333333 | D10: =COUNT('18 DÍAS (1 UA)'!O9:O14) -> 1 | F10: =COUNT('9 DÍAS (2 o más UA)'!I7:I77) -> 32 | G10: ='9 DÍAS (2 o más UA)'!#REF! ->  | H10: =COUNTIF('18 DÍAS (2 o más UA)'!I7:I8, ">10") -> 0 | J10: =CountCcolor('Solicitudes Acceso restringido'!$B$2,'Solicitudes Acceso restringido'!I9:I28) -> 0 | L10: =COUNT(#REF!) -> 0 | N10: =COUNT(#REF!) -> 0 | O10: =#REF! -> 
A11: DVS | B11: =COUNT('9 DÍAS (1 UA)'!Q11:Q59) -> 1 | C11: ='9 DÍAS (1 UA)'!Q61 -> 3 | D11: =COUNT('18 DÍAS (1 UA)'!Q9:Q14) -> 0 | F11: =COUNT('9 DÍAS (2 o más UA)'!J7:J77) -> 18 | G11: ='9 DÍAS (2 o más UA)'!#REF! ->  | H11: =COUNTIF('18 DÍAS (2 o más UA)'!J7:J8, ">10") -> 0 | J11: =CountCcolor('Solicitudes Acceso restringido'!$B$2,'Solicitudes Acceso restringido'!J9:J28) -> 1 | K11: ='Solicitudes Acceso restringido'!J29 -> 10 | L11: =COUNT(#REF!) -> 0 | M11: =#REF! ->  | N11: =COUNT(#REF!) -> 0 | O11: =#REF! -> 
A12: DTI | B12: =COUNT('9 DÍAS (1 UA)'!S11:S59) -> 14 | C12: ='9 DÍAS (1 UA)'!S61 -> 4.214285714 | D12: =COUNT('18 DÍAS (1 UA)'!S9:S14) -> 0 | E12: ='18 DÍAS (1 UA)'!S15 ->  | F12: =COUNT('9 DÍAS (2 o más UA)'!K7:K77) -> 27 | G12: ='9 DÍAS (2 o más UA)'!#REF! ->  | H12: =COUNTIF('18 DÍAS (2 o más UA)'!K7:K8, ">10") -> 0 | I12: ='18 DÍAS (2 o más UA)'!K12 -> 11 | J12: =CountCcolor('Solicitudes Acceso restringido'!$B$2,'Solicitudes Acceso restringido'!K9:K28) -> 1 | L12: =COUNT(#REF!) -> 0 | N12: =COUNT(#REF!) -> 0
A13: DAF | B13: =COUNT('9 DÍAS (1 UA)'!U11:U59) -> 49 | C13: ='9 DÍAS (1 UA)'!U61 -> 6.489795918 | D13: =COUNT('18 DÍAS (1 UA)'!U9:U14) -> 5 | F13: =COUNT('9 DÍAS (2 o más UA)'!L7:L77) -> 28 | G13: ='9 DÍAS (2 o más UA)'!#REF! ->  | H13: =COUNTIF('18 DÍAS (2 o más UA)'!L7:L8, ">10") -> 1 | I13: ='18 DÍAS (2 o más UA)'!L12 -> 13.5 | J13: =CountCcolor('Solicitudes Acceso restringido'!$B$2,'Solicitudes Acceso restringido'!L9:L28) -> 7 | K13: ='Solicitudes Acceso restringido'!L29 -> 13.71428571 | L13: =COUNT(#REF!) -> 0 | M13: =#REF! ->  | N13: =COUNT(#REF!) -> 0 | O13: =#REF! -> 
A14: DCS | B14: =COUNT('9 DÍAS (1 UA)'!W11:W59) -> 4 | C14: ='9 DÍAS (1 UA)'!W61 -> 1.75 | D14: =COUNT('18 DÍAS (1 UA)'!W9:W14) -> 0 | F14: =COUNT('9 DÍAS (2 o más UA)'!M7:M77) -> 16 | H14: =COUNTIF('18 DÍAS (2 o más UA)'!M7:M8, ">10") -> 0 | J14: =CountCcolor('Solicitudes Acceso restringido'!$B$2,'Solicitudes Acceso restringido'!M9:M28) -> 0 | L14: =COUNT(#REF!) -> 0 | N14: =COUNT(#REF!) -> 0 | O14: =#REF! -> 
A15: OIP | B15: =COUNT('9 DÍAS (1 UA)'!Y11:Y59) -> 25 | C15: ='9 DÍAS (1 UA)'!Y61 -> 4.64 | D15: =COUNT('18 DÍAS (1 UA)'!Y9:Y14) -> 0 | F15: =COUNT('9 DÍAS (2 o más UA)'!N7:N77) -> 10 | G15: ='9 DÍAS (2 o más UA)'!#REF! ->  | H15: =COUNTIF('18 DÍAS (2 o más UA)'!N7:N8, ">10") -> 0 | J15: =CountCcolor('Solicitudes Acceso restringido'!$B$2,'Solicitudes Acceso restringido'!N9:N28) -> 0 | L15: =COUNT(#REF!) -> 0 | M15: =#REF! ->  | N15: =COUNT(#REF!) -> 0 | O15: =#REF! -> 
B17: FOLIOS PENDIENTES A LA FECHA DE REPORTE

Sheet TABLAS
A1: Unidad Administrativa | B1: SIP de 9 días atendidas por una UA | D1: SIP de 18 días atendidas por una UA | F1: SIP de 9 días atendidas por dos o más UA | H1: SIP de 18 días atendidas por dos o más UA | J1: Solicitudes Acceso Restringido | L1: SIP de 5 días atendidas por 1 UA | N1: SIP de 5 días atendidas por 2 o más UA | P1: SIP de 3 días atendidas por la UT | R1: No. solicitudes 9 días / UA | S1: Promedio Atención UA (9 DÍAS) | T1: No. solicitudes 9 días (2 o más UA) | U1: No. solicitudes 18 días / UA | V1: No. solicitudes 18 días (2 o más UA) | W1: Promedio Atención UA (18 días) | X1: No. solicitudes Acceso Restringido | Y1: Promedio Atención Acceso Restringido | Z1: No. total solicitudes / UA | AA1: Promedio Atención UA (Total)
B2: Folios | C2: Promedio días atención | D2: Folios | E2: Promedio días atención | F2: Folios | G2: Promedio días atención | H2: Folios | I2: Promedio días atención | J2: Folios | K2: Promedio días atención | L2: Folios | M2: Promedio días atención | N2: Folios | O2: Promedio días atención | P2: Folios | Q2: Promedio días de Atención
A3: Secretaría Técnica | B3: =COUNT('9 DÍAS (1 UA)'!C11:C59) -> 14 | C3: ='9 DÍAS (1 UA)'!C61 -> 6.428571429 | D3: =COUNT('18 DÍAS (1 UA)'!C9:C14) -> 0 | E3: ='18 DÍAS (1 UA)'!C15 ->  | F3: =COUNT('9 DÍAS (2 o más UA)'!C7:C77) -> 20 | G3: ='9 DÍAS (2 o más UA)'!C79 -> 7.3 | H3: =COUNTIF('18 DÍAS (2 o más UA)'!C7:C8, ">10") -> 2 | I3: ='18 DÍAS (2 o más UA)'!C12 -> 14.5 | J3: =CountCcolor('Solicitudes Acceso restringido'!$B$2,'Solicitudes Acceso restringido'!C9:C28) -> 0 | K3: ='Solicitudes Acceso restringido'!C29 ->  | L3: =COUNT(#REF!) -> 0 | M3: =#REF! ->  | N3: =COUNT(#REF!) -> 0 | O3: =#REF! ->  | P3: - | Q3: N/A | R3: =SUM(B3+F3) -> 34 | S3: =AVERAGE(C3,G3) -> 6.864285714 | T3: - | U3: =SUM(D3,H3) -> 2 | V3: - | W3: =AVERAGE(I3) -> 14.5 | X3: =J3 -> 0 | Z3: =SUM(B3,D3,F3,H3,J3,L3,N3) -> 36 | AA3: =AVERAGE(C3,G3,I3) -> 9.40952381
A4: Secretaría Ejecutiva | B4: =COUNT('9 DÍAS (1 UA)'!E11:E59) -> 16 | C4: ='9 DÍAS (1 UA)'!E61 -> 7.5 | D4: =COUNT('18 DÍAS (1 UA)'!E9:E14) -> 0 | E4: ='18 DÍAS (1 UA)'!E15 ->  | F4: =COUNT('9 DÍAS (2 o más UA)'!D7:D77) -> 19 | G4: ='9 DÍAS (2 o más UA)'!D79 -> 7.736842105 | H4: =COUNTIF('18 DÍAS (2 o más UA)'!D7:D8, ">10") -> 0 | I4: ='18 DÍAS (2 o más UA)'!D12 ->  | J4: =CountCcolor('Solicitudes Acceso restringido'!$B$2,'Solicitudes Acceso restringido'!D9:D28) -> 0 | K4: ='Solicitudes Acceso restringido'!D29 ->  | L4: =COUNT(#REF!) -> 0 | M4: =#REF! ->  | N4: =COUNT(#REF!) -> 0 | O4: =#REF! ->  | P4: - | Q4: N/A | R4: =SUM(B4+F4) -> 35 | S4: =AVERAGE(G4) -> 7.736842105 | T4: - | U4: =SUM(D4,H4) -> 0 | V4: - | W4: - | X4: =J4 -> 0 | Z4: =SUM(B4,D4,F4,H4,J4,L4,N4) -> 35 | AA4: =AVERAGE(C4,G4) -> 7.618421053
A5: Contraloría | B5: =COUNT('9 DÍAS (1 UA)'!G11:G59) -> 5 | C5: ='9 DÍAS (1 UA)'!G61 -> 3.6 | D5: =COUNT('18 DÍAS (1 UA)'!G9:G14) -> 0 | E5: ='18 DÍAS (1 UA)'!G15 ->  | F5: =COUNT('9 DÍAS (2 o más UA)'!E7:E77) -> 18 | G5: ='9 DÍAS (2 o más UA)'!E79 -> 5.444444444 | H5: =COUNTIF('18 DÍAS (2 o más UA)'!E7:E8, ">10") -> 0 | I5: ='18 DÍAS (2 o más UA)'!E12 ->  | J5: =CountCcolor('Solicitudes Acceso restringido'!$B$2,'Solicitudes Acceso restringido'!E9:E28) -> 2 | K5: ='Solicitudes Acceso restringido'!E29 -> 8.5 | L5: =COUNT(#REF!) -> 0 | M5: =#REF! ->  | N5: =COUNT(#REF!) -> 0 | O5: =#REF! ->  | P5: - | Q5: N/A | R5: =SUM(B5+F5) -> 23 | S5: =AVERAGE(C5,G5, K5) -> 5.848148148 | T5: - | U5: =SUM(D5,H5) -> 0 | V5: - | W5: - | X5: 2 | Z5: 25 | AA5: =AVERAGE(C5,G5,K5) -> 5.848148148
A6: DJDN | B6: =COUNT('9 DÍAS (1 UA)'!I11:I59) -> 32 | C6: ='9 DÍAS (1 UA)'!I61 -> 7.9375 | D6: =COUNT('18 DÍAS (1 UA)'!I9:I14) -> 2 | E6: ='18 DÍAS (1 UA)'!I15 -> 14 | F6: =COUNT('9 DÍAS (2 o más UA)'!F7:F77) -> 51 | G6: ='9 DÍAS (2 o más UA)'!F79 -> 7.705882353 | H6: =COUNTIF('18 DÍAS (2 o más UA)'!F7:F8, ">10") -> 1 | I6: ='18 DÍAS (2 o más UA)'!F12 -> 18 | J6: =CountCcolor('Solicitudes Acceso restringido'!$B$2,'Solicitudes Acceso restringido'!F9:F28) -> 6 | K6: ='Solicitudes Acceso restringido'!F29 -> 11.5 | L6: =COUNT(#REF!) -> 0 | M6: =#REF! ->  | N6: =COUNT(#REF!) -> 0 | O6: =#REF! ->  | P6: - | Q6: N/A | R6: =SUM(B6+F6) -> 83 | S6: =AVERAGE(C6,G6,K6) -> 9.047794118 | T6: - | U6: 3 | V6: - | W6: =AVERAGE(I6) -> 18 | X6: 6 | Z6: 92 | AA6: =AVERAGE(C6,G6,I6,K6,) -> 9.028676471
A7: DCCT | B7: =COUNT('9 DÍAS (1 UA)'!K11:K59) -> 5 | C7: ='9 DÍAS (1 UA)'!K61 -> 5.2 | D7: =COUNT('18 DÍAS (1 UA)'!K9:K14) -> 0 | E7: ='18 DÍAS (1 UA)'!K15 ->  | F7: =COUNT('9 DÍAS (2 o más UA)'!G7:G77) -> 22 | G7: ='9 DÍAS (2 o más UA)'!G79 -> 6.227272727 | H7: =COUNTIF('18 DÍAS (2 o más UA)'!G7:G8, ">10") -> 0 | I7: ='18 DÍAS (2 o más UA)'!G12 ->  | J7: =CountCcolor('Solicitudes Acceso restringido'!$B$2,'Solicitudes Acceso restringido'!G9:G28) -> 2 | K7: ='Solicitudes Acceso restringido'!G29 -> 8.5 | L7: =COUNT(#REF!) -> 0 | M7: =#REF! ->  | N7: =COUNT(#REF!) -> 0 | O7: =#REF! ->  | P7: - | Q7: N/A | R7: =SUM(B7,F7) -> 27 | S7: =AVERAGE(C7,G7) -> 5.713636364 | T7: - | U7: 0 | V7: - | W7: - | X7: 2 | Z7: 29 | AA7: =AVERAGE(C7,G7,K7) -> 6.642424242
A8: DEyE | B8: =COUNT('9 DÍAS (1 UA)'!M11:M59) -> 17 | C8: ='9 DÍAS (1 UA)'!M61 -> 4.117647059 | D8: =COUNT('18 DÍAS (1 UA)'!M9:M14) -> 0 | E8: ='18 DÍAS (1 UA)'!M15 ->  | F8: =COUNT('9 DÍAS (2 o más UA)'!H7:H77) -> 24 | G8: ='9 DÍAS (2 o más UA)'!H79 -> 6.375 | H8: =COUNTIF('18 DÍAS (2 o más UA)'!H7:H8, ">10") -> 0 | I8: ='18 DÍAS (2 o más UA)'!H12 ->  | J8: =CountCcolor('Solicitudes Acceso restringido'!$B$2,'Solicitudes Acceso restringido'!H9:H28) -> 0 | K8: ='Solicitudes Acceso restringido'!H29 ->  | L8: =COUNT(#REF!) -> 0 | M8: =#REF! ->  | N8: =COUNT(#REF!) -> 0 | O8: =#REF! ->  | P8: - | Q8: N/A | R8: =SUM(B8+F8) -> 41 | S8: 3.8 | T8: - | U8: 0 | V8: - | W8: - | X8: 0 | Z8: 41 | AA8: =AVERAGE(C8,G8) -> 5.246323529
A9: DDP | B9: =COUNT('9 DÍAS (1 UA)'!O11:O59) -> 15 | C9: ='9 DÍAS (1 UA)'!O61 -> 6.933333333 | D9: =COUNT('18 DÍAS (1 UA)'!O9:O14) -> 1 | E9: ='18 DÍAS (1 UA)'!O15 -> 10 | F9: =COUNT('9 DÍAS (2 o más UA)'!I7:I77) -> 32 | G9: ='9 DÍAS (2 o más UA)'!I79 -> 7.65625 | H9: =COUNTIF('18 DÍAS (2 o más UA)'!I7:I8, ">10") -> 0 | I9: ='18 DÍAS (2 o más UA)'!I12 ->  | J9: =CountCcolor('Solicitudes Acceso restringido'!$B$2,'Solicitudes Acceso restringido'!I9:I28) -> 0 | K9: ='Solicitudes Acceso restringido'!I29 ->  | L9: =COUNT(#REF!) -> 0 | M9: =#REF! ->  | N9: =COUNT(#REF!) -> 0 | O9: =#REF! ->  | P9: - | Q9: N/A | R9: 47 | S9: =AVERAGE(C9,G9) -> 7.294791667 | T9: - | U9: 1 | V9: - | W9: =AVERAGE(E9) -> 10 | X9: 0 | Z9: 48 | AA9: =AVERAGE(C9,E9,G9) -> 8.196527778
A10: DVS | B10: =COUNT('9 DÍAS (1 UA)'!Q11:Q59) -> 1 | C10: ='9 DÍAS (1 UA)'!Q61 -> 3 | D10: =COUNT('18 DÍAS (1 UA)'!Q9:Q14) -> 0 | E10: ='18 DÍAS (1 UA)'!K15 ->  | F10: =COUNT('9 DÍAS (2 o más UA)'!J7:J77) -> 18 | G10: ='9 DÍAS (2 o más UA)'!J79 -> 7 | H10: =COUNTIF('18 DÍAS (2 o más UA)'!J7:J8, ">10") -> 0 | I10: ='18 DÍAS (2 o más UA)'!J12 ->  | J10: =CountCcolor('Solicitudes Acceso restringido'!$B$2,'Solicitudes Acceso restringido'!J9:J28) -> 1 | K10: ='Solicitudes Acceso restringido'!J29 -> 10 | L10: =COUNT(#REF!) -> 0 | M10: =#REF! ->  | N10: =COUNT(#REF!) -> 0 | O10: =#REF! ->  | P10: - | Q10: N/A | R10: 19 | S10: =AVERAGE(C10,G10) -> 5 | T10: - | U10: 0 | V10: - | W10: - | X10: 1 | Z10: 20 | AA10: =AVERAGE(C10,G10,K10) -> 6.666666667
A11: DTI | B11: =COUNT('9 DÍAS (1 UA)'!S11:S59) -> 14 | C11: ='9 DÍAS (1 UA)'!S61 -> 4.214285714 | D11: =COUNT('18 DÍAS (1 UA)'!S9:S14) -> 0 | E11: ='18 DÍAS (1 UA)'!S15 ->  | F11: =COUNT('9 DÍAS (2 o más UA)'!K7:K77) -> 27 | G11: ='9 DÍAS (2 o más UA)'!K79 -> 5.703703704 | H11: =COUNTIF('18 DÍAS (2 o más UA)'!K7:K8, ">10") -> 0 | I11: ='18 DÍAS (2 o más UA)'!K12 -> 11 | J11: =CountCcolor('Solicitudes Acceso restringido'!$B$2,'Solicitudes Acceso restringido'!K9:K28) -> 1 | K11: ='Solicitudes Acceso restringido'!K29 -> 7 | L11: =COUNT(#REF!) -> 0 | M11: =#REF! ->  | N11: =COUNT(#REF!) -> 0 | O11: =#REF! ->  | P11: - | Q11: N/A | R11: 41 | S11: =AVERAGE(C11,G11,K11) -> 5.639329806 | T11: - | U11: 0 | V11: - | W11: - | X11: 1 | Z11: 42 | AA11: =AVERAGE(C11,G11,K11) -> 5.639329806
A12: DAF | B12: =COUNT('9 DÍAS (1 UA)'!U11:U59) -> 49 | C12: ='9 DÍAS (1 UA)'!U61 -> 6.489795918 | D12: =COUNT('18 DÍAS (1 UA)'!U9:U14) -> 5 | E12: ='18 DÍAS (1 UA)'!U15 -> 17.6 | F12: =COUNT('9 DÍAS (2 o más UA)'!L7:L77) -> 28 | G12: ='9 DÍAS (2 o más UA)'!L79 -> 6.928571429 | H12: =COUNTIF('18 DÍAS (2 o más UA)'!L7:L8, ">10") -> 1 | I12: ='18 DÍAS (2 o más UA)'!L12 -> 13.5 | J12: =CountCcolor('Solicitudes Acceso restringido'!$B$2,'Solicitudes Acceso restringido'!L9:L28) -> 7 | K12: ='Solicitudes Acceso restringido'!L29 -> 13.71428571 | L12: =COUNT(#REF!) -> 0 | M12: =#REF! ->  | N12: =COUNT(#REF!) -> 0 | O12: =#REF! ->  | P12: - | Q12: N/A | R12: 77 | S12: =AVERAGE(C12,G12,K12) -> 9.044217687 | T12: - | U12: 6 | V12: - | W12: =AVERAGE(E12,I12) -> 15.55 | X12: 7 | Z12: 90 | AA12: =AVERAGE(C12,E12,G12,I12,K12) -> 11.64653061
A13: DCS | B13: =COUNT('9 DÍAS (1 UA)'!W11:W59) -> 4 | C13: ='9 DÍAS (1 UA)'!W61 -> 1.75 | D13: =COUNT('18 DÍAS (1 UA)'!W9:W14) -> 0 | E13: ='18 DÍAS (1 UA)'!W15 ->  | F13: =COUNT('9 DÍAS (2 o más UA)'!M7:M77) -> 16 | G13: ='9 DÍAS (2 o más UA)'!M79 -> 6.6875 | H13: =COUNTIF('18 DÍAS (2 o más UA)'!M7:M8, ">10") -> 0 | I13: ='18 DÍAS (2 o más UA)'!M12 ->  | J13: =CountCcolor('Solicitudes Acceso restringido'!$B$2,'Solicitudes Acceso restringido'!M9:M28) -> 0 | K13: ='Solicitudes Acceso restringido'!M29 ->  | L13: =COUNT(#REF!) -> 0 | M13: =#REF! ->  | N13: =COUNT(#REF!) -> 0 | O13: =#REF! ->  | P13: - | Q13: N/A | R13: 20 | S13: =AVERAGE(C13,G13) -> 4.21875 | T13: - | U13: 0 | V13: - | W13: - | X13: 0 | Z13: 20 | AA13: =AVERAGE(C13,G13) -> 4.21875
A14: UT | B14: =COUNT('9 DÍAS (1 UA)'!Y11:Y59) -> 25 | C14: ='9 DÍAS (1 UA)'!Y61 -> 4.64 | D14: =COUNT('18 DÍAS (1 UA)'!Y9:Y14) -> 0 | E14: ='18 DÍAS (1 UA)'!Y15 ->  | F14: =COUNT('9 DÍAS (2 o más UA)'!N7:N77) -> 10 | G14: ='9 DÍAS (2 o más UA)'!N79 -> 1.6 | H14: =COUNTIF('18 DÍAS (2 o más UA)'!N7:N8, ">10") -> 0 | I14: ='18 DÍAS (2 o más UA)'!N12 ->  | J14: =CountCcolor('Solicitudes Acceso restringido'!$B$2,'Solicitudes Acceso restringido'!N9:N28) -> 0 | K14: ='Solicitudes Acceso restringido'!N29 ->  | L14: =COUNT(#REF!) -> 0 | M14: =#REF! ->  | N14: =COUNT(#REF!) -> 0 | O14: =#REF! ->  | P14: =COUNT('3 DÍAS (UT)'!E7:E330) -> 324 | Q14: ='3 DÍAS (UT)'!E332 -> 0.3950617284 | R14: 35 | S14: =AVERAGE(C14,G14) -> 3.12 | T14: - | U14: 0 | V14: - | W14: - | X14: 0 | Z14: =SUM(B14,D14,F14,H14,J14,L14,N14,P14) -> 359 | AA14: =AVERAGE(C14,G14,Q14) -> 2.211687243
A15: SUMA/PROMEDIO | B15: =SUM(B3:B14) -> 197 | C15: =AVERAGE(C3:C14) -> 5.150927788 | D15: =SUM(D3:D14) -> 8 | E15: =AVERAGE(E9,E12) -> 13.8 | F15: =SUM(F3:F14) -> 285 | G15: =AVERAGE(G3:G14) -> 6.363788897 | H15: =SUM(H3:H14) -> 4 | I15: =AVERAGE(I3,I6,I12) -> 15.33333333 | J15: =SUM(J3:J14) -> 19 | K15: =AVERAGE(K6,K7,K10,K11,K12) -> 10.14285714 | L15: =SUM(L3:L14) -> 0 | M15: =AVERAGE(M6,M12) ->  | N15: =SUM(N3:N14) -> 0 | O15: =AVERAGE(O3:O14) ->  | P15: =SUM(P14) -> 324 | Q15: =(Q14) -> 0.3950617284 | R15: =SUM(R3:R14) -> 482 | S15: =AVERAGE(S3:S14) -> 6.110649634 | T15: ='9 DÍAS (2 o más UA)'!C80 -> 62 | U15: =SUM(U3:U14) -> 12 | V15: ='18 DÍAS (2 o más UA)'!C13 -> 3 | W15: =AVERAGE(W3:W14) -> 14.5125 | X15: =SUM(X3:X14) -> 19 | Z15: =SUM(Z3:Z14) -> 837 | AA15: =AVERAGE(AA3:AA14) -> 6.864417447
